Cogmind - Beta 11 @@@ ROGUE MODE // 2022.03.29 @ 01:31:59 Player: Infomantis Result: Destroyed by G-47 Trooper with Particle Gun Performance ------------- Evolutions (0) 0 Regions Visited (1) 200 Robots Destroyed (6) 30 Value Destroyed (56) 56 Prototype IDs (2) 40 Alien Tech Used (0) 0 Bonus (0) 0 TOTAL SCORE: 326 Bonus ------- None Cogmind --------- Core Integrity 0/250 Matter 300/300 Energy 100/100 System Corruption 0% Temperature Cool (9) Movement Walking (120) Location -10/Materials Parts ------- > --- POWER (1) -------- (None) > --- PROPULSION (2) --- Aluminum Leg > --- UTILITY (2) ------ Small Storage Unit Seismic Detector > --- WEAPON (2) ------- (None) > --- INVENTORY (8) ---- Light Ion Engine Light Treads Light Treads Compact Wheel Compact Wheel EM Pulse Gun Peak State ------------ > --- POWER ------------ Light Ion Engine > --- PROPULSION ------- Aluminum Leg Aluminum Leg > --- UTILITY ---------- Small Storage Unit Seismic Detector > --- WEAPON ----------- EM Pulse Gun Medium Laser > --- INVENTORY -------- Light Ion Engine Light Treads Light Treads Compact Wheel Compact Wheel Small Laser [Rating: 7] Favorites ----------- Power Light Ion Engine Engine Light Ion Engine Propulsion Aluminum Leg Leg Aluminum Leg Utility Small Storage Unit Device Seismic Detector Storage Small Storage Unit Weapon Medium Laser Energy Gun Medium Laser Build | -11 -10 ------- Run | Scr Mat Slots Evolved . | . . Power . | . . Propulsion . | . . Utility . | . . Weapon . | . . Parts Attached 8 | 8 . Power 1 | 1 . Engine 1 | 1 . Core . | . . Reactor . | . . Propulsion 2 | 2 . Treads . | . . Leg 2 | 2 . Wheel . | . . Hover . | . . Flight . | . . Utility 2 | 2 . Device 1 | 1 . Storage 1 | 1 . Processor . | . . Hackware . | . . Protection . | . . Artifact . | . . Weapon 3 | 3 . Energy Gun 3 | 3 . Energy Cannon . | . . Ballistic Gun . | . . Ballistic Cannon . | . . Launcher . | . . Special Weapon . | . . Impact Weapon . | . . Slashing Weapon . | . . Piercing Weapon . | . . Special Melee Weapon . | . . Unidentified Prototypes . | . . Parts Lost 4 | . 4 Power 1 | . 1 Propulsion 1 | . 1 Utility . | . . Weapon 2 | . 2 Highest Loss Streak 4 | . 4 To Critical Strikes . | . . Average Slot Usage (%) 84 | . 84 Engine 9 | . 9 Leg 24 | . 24 Device 14 | . 14 Storage 14 | . 14 Energy Gun 20 | . 20 Naked Turns . | . . Heaviest Build 13 | 13 12 Greatest Support 20 | 20 20 Greatest Overweight (x) . | . . Average Overweight (x) . | . . Largest Inventory Capacity 8 | 8 8 Average Capacity 7 | 7 8 Most Carried 6 | 6 6 Average Carried 5 | 4 6 Final Capacity 8 | 8 8 Final Carried 6 | 6 6 Class Distribution -------------------- 100% | Mutant Dominant Class ---------------- Mutant | -10/Materials Resources | -11 -10 ----------- Run | Scr Mat Matter Collected 280 | 280 . Remotely . | . . Salvage Created 183 | 137 46 Parts 15 | 8 7 Haulers Intercepted . | . . Recyclers Shooed 1 | 1 . Parts Field Recycled . | . . Retrieved Matter . | . . Parts Self-Destructed . | . . Prevented . | . . Kills | -11 -10 ------- Run | Scr Mat Combat Hostiles Destroyed 2 | . 2 Guns 2 | . 2 Classes Destroyed 4 | 2 2 Tunneler 2 | 2 . Recycler 1 | 1 . Watcher 1 | . 1 Swarmer 2 | . 2 Best Kill Streak 3 | 3 3 Combat Bots Only 2 | . 2 Max Kills in Single Turn 1 | 1 1 Gunslinging . | . . Exploded . | . . Melee . | . . Uniques/NPCs Destroyed . | . . Combat | -11 -10 -------- Run | Scr Mat Damage Taken 700 | . 700 Core 259 | . 259 Absorbed by Shields . | . . Core Remaining (%) 100 | 100 . Volleys Fired 17 | 7 10 Largest 2 | 2 2 Hottest 90 | 90 90 Shots Fired 34 | 14 20 Gun 34 | 14 20 Cannon . | . . Launcher . | . . Special . | . . Kinetic . | . . Thermal 27 | 7 20 Explosive . | . . Electromagnetic 7 | 7 . Robot Hit Streak 5 | 4 5 Robot Miss Streak 3 | 1 3 Penetration Max . | . . Secondary Targets . | . . Shots Hit Robots 21 | 10 11 Core Hits 8 | 5 3 Critical Kills . | . . Critical Parts Destroyed . | . . Critical Strikes 1 | 1 . Burn 1 | 1 . Melee Attacks . | . . Impact . | . . Slashing . | . . Piercing . | . . Sneak Attacks . | . . Combat Hostiles . | . . Follow-up Attacks . | . . Damage Inflicted 290 | 135 155 Guns 281 | 129 152 Cannons . | . . Explosions . | . . Melee . | . . Ramming 9 | 6 3 Kinetic . | . . Thermal 214 | 62 152 Explosive . | . . Electromagnetic 67 | 67 . Impact . | . . Slashing . | . . Piercing . | . . Highest Corruption . | . . Average Corruption . | . . Corruption Purged . | . . Corruption Blocked . | . . Overload Shots . | . . Overflow Damage . | . . Projectiles . | . . Explosions . | . . Melee . | . . Knockbacks . | . . Impact . | . . Kinetic . | . . Secondary . | . . Self-Inflicted Damage . | . . Shots . | . . Rammed . | . . Targets Rammed 6 | 2 4 Kicked 6 | 2 4 Crushed . | . . Highest Temperature 411 | 180 411 Average Temperature 166 | 82 216 Received Heat Transfer 288 | . 288 Effects 2 | . 2 Shutdowns 1 | . 1 Interference 1 | . 1 Siege Activations . | . . Robots Corrupted . | . . Combat Hostiles . | . . Parts Fried . | . . Impact Corruptions . | . . Robots Melted . | . . Combat Hostiles . | . . Parts Melted . | . . Heat Transferred 656 | 259 397 Parts Sabotaged . | . . Parts Stolen . | . . Parts Stripped . | . . Power Chain Reactions . | . . Missiles Intercepted . | . . Alert | -11 -10 ------- Run | Scr Mat Peak Influence 86 | 15 86 Initial 9 | . 9 Average 22 | 5 36 Maximum Alert Level . | . . Low Security (%) 100 | 100 100 Level 1 . | . . Level 2 . | . . Level 3 . | . . Level 4 . | . . Level 5 . | . . High Security . | . . Max Security . | . . Squads Dispatched 2 | . 2 Investigation 1 | . 1 Extermination . | . . Reinforcement 1 | . 1 Assault . | . . Garrison . | . . Intercept . | . . Searches Triggered . | . . Construction Impeded . | . . Haulers Reinforced . | . . Active Scanning Responses . | . . Cargo Convoy Interrupts . | . . Stealth | -11 -10 --------- Run | Scr Mat Distress Signals 3 | . 3 Communications Jammed . | . . Distress Signals . | . . Times Spotted 15 | . 15 Peak Tracking Total 11 | . 11 Tactical Retreats . | . . Traps | -11 -10 ------- Run | Scr Mat Traps Triggered . | . . Indirectly . | . . Trap Hack Attempts . | . . Triggered . | . . Disarmed . | . . Reprogrammed . | . . Reused . | . . Traps Extracted . | . . Installed . | . . Triggered . | . . Machines | -11 -10 ---------- Run | Scr Mat Machines Disabled . | . . Max in Single Turn . | . . Machines Sabotaged . | . . Garrisons Compromised . | . . Overloaded Fab Kills . | . . Hacking | -11 -10 --------- Run | Scr Mat Machines Accessed 1 | . 1 Terminals 1 | . 1 Fabricators . | . . Repair Stations . | . . Recycling Units . | . . Scanalyzers . | . . Garrison Access . | . . Total Hacks 4 | . 4 Successful 2 | . 2 Failed 2 | . 2 Catastrophic 1 | . 1 Database Lockouts . | . . Manual 2 | . 2 Terminals 4 | . 4 Fabricators . | . . Repair Stations . | . . Recycling Units . | . . Scanalyzers . | . . Garrison Access . | . . Terminal Hacks 2 | . 2 Prototype ID Bank 1 | . 1 Emergency Access Points 1 | . 1 Fabricator Hacks . | . . Repair Station Hacks . | . . Recycling Unit Hacks . | . . Scanalyzer . | . . Garrison Access Hacks . | . . Unauthorized Hacks . | . . Terminals . | . . Fabricators . | . . Repair Stations . | . . Recycling Units . | . . Scanalyzers . | . . Garrison Access . | . . Data Cores Recovered . | . . Used . | . . Hacking Detections 1 | . 1 Full Trace Events 1 | . 1 Feedback Events . | . . Feedback Blocked . | . . Robot Schematics Acquired . | . . Robots Built . | . . Authchips . | . . Time . | . . Total Robot Build Rating . | . . Part Schematics Acquired . | . . Parts Built . | . . Authchips . | . . Time . | . . Total Part Build Rating . | . . Parts Repaired . | . . Time . | . . Parts Recycled . | . . Recycled Matter . | . . Retrieved Matter . | . . Retrieved Components . | . . Parts Scanalyzed . | . . Part Schematics Acquired . | . . Parts Damaged . | . . Bothacking | -11 -10 ------------ Run | Scr Mat Used RIF Installer . | . . Robots Hacked . | . . Non-combat . | . . Combat . | . . Robot Hacks Applied . | . . Relay Couplers Released . | . . Fabnet Peak Effective % . | . . Robots Rewired . | . . Allies Hacked . | . . Hacks Repelled . | . . Allies | -11 -10 -------- Run | Scr Mat Total Allies . | . . Largest Group . | . . Highest-Rated Group . | . . Highest-Rated Ally . | . . Total Orders . | . . Ally Attacks . | . . Total Damage . | . . Kills . | . . Allies Corrupted . | . . Allies Melted . | . . Intel | -11 -10 ------- Run | Scr Mat Robot Analysis Total . | . . Derelict Logs Recovered . | . . Drone Launches . | . . Drone Recoveries . | . . Exploration | -11 -10 ------------- Run | Scr Mat Turns Passed 244 | 109 135 Spaces Moved 142 | 59 83 Core 3 | 3 . Treads . | . . Legs 139 | 56 83 Wheels . | . . Hover . | . . Flight . | . . Fastest Speed 50 | 50 120 Average Speed 118 | 116 120 Slowest Speed 120 | 120 120 Overloaded Moves . | . . Propulsion Burnouts . | . . Robots Hopped . | . . Cave-ins Triggered . | . . Exploration Rate (%) 21 | 4 38 Regions Visited 1 Branch Regions . Pre-discovered Areas . | . . Known Exits Taken . | . . Unknown Exits Taken 1 | 1 . Scrap Searched . | . . Spaces Dug . | . . Terrain Destroyed . | . . Melee . | . . Projectile . | . . AOE . | . . Terrain Rammed . | . . Walls Destroyed . | . . Machines Disabled . | . . Actions | -11 -10 --------- Run | Scr Mat Total 178 | 81 97 Wait . | . . Move 142 | 59 83 Hop . | . . Pick Up 6 | 6 . Fast Attach 7 | 7 . Attach . | . . Detach . | . . Swap 1 | 1 . Drop . | . . Fire 17 | 7 10 Melee . | . . Ram . | . . Kick 5 | 1 4 Crush . | . . Escape Stasis . | . . Rewire . | . . Trap . | . . Miscellaneous . | . . Route ------- -11/Scrapyard -10/Materials History --------- Turn | Location | Event 43 | -11/Scrapyard | Discovered new exit (range 15) 110 | -11/Scrapyard | Entered Materials 202 | -10/Materials | Core integrity fell below 50% 219 | -10/Materials | Core integrity fell below 20% 243 | -10/Materials | Lost 4 parts (1p1n2w) 245 | -10/Materials | Destroyed by G-47 Trooper with Particle Gun Last Messages --------------- 00202_ Lgt. Ion Engine destroyed. 00203_ R-06 Scavenger inserts Visual Processing Unit into recycling unit. 00204_ Sml. Laser destroyed. 00205_ K-01 Serf collects debris. 00206_ Critical hit (Burn: +37). 00206_ R-06 Scavenger inserts Lgt. Ion Engine into recycling unit. 00206_ Kicked G-47 Trooper. 00209_ K-01 Serf collects debris. 00209_ R-06 Scavenger inserts Hover Unit into recycling unit. 00210_ Med. Laser destroyed. 00210_ Kicked G-47 Trooper out of the way. 00212_ R-06 Scavenger inserts Flight Unit into recycling unit. 00212_ Aluminum Leg destroyed. 00213_ K-01 Serf collects debris. 00216_ Overheating: System interference. 00216_ Seismic Detector temporarily disabled. 00216_ K-01 Serf collects debris. 00227_ O-16 Technician: "IFF HANDSHAKE FAILED. SECURING TERMINAL." 00235_ ALERT: Hostiles spotted, dispatching reinforcements to Terminal M002. 00243_ W-16 Scout sends out distress signal. Map ----- +----------------------------------------------------+ | | | | | | | | | | | | | | | | | | | | | ?????????????????????????????????????????????????? | | ?????????????????????????????????????????????????? | | ?????????????????????????????????????????????????? | | ?????????????????????????????????????????????????? | | ?????????????????????????????????????????????????? | | ?????????????????????????????????????????????????? | | ?????????????????????????????????????????????????? | | ?????????????????????????????????????????????????? | | ?????????????????????????????????????????????????? | | ?????????????????????????????????????????????????? | | ?????????????????????????????????????????????????? | | ?????????????????????????????????????????????????? | | ?????????????????????????????????????????????????? | | ????????????????????????###+###?????? #??????????? | | ????????????????????????# ##### #??????????? | | ???????????# ! """#####@ +??????????? | | ???????????# / #??????????? | | ????????????????######### #??????????? | | ????????????????????????# #########??????????? | | ????????????????????????## ##??????????????????? | | ?????????????????????????# ###########?????????? | | ?????????????? ????????+ s #### ##???? | | ######???????? #???????# ???? | | #???????# ???????# gg ##????????? | | #???????# #???????###### ###?????????? | | #???????/ #????????????# #???????????? | | #???????# #?#+#????????# gt #???????????? | | !! #???????# ### ########## #???????????? | | !! #???????# #???????????? | | ! #???????# ##########/###+#???????????? | | #???????# """ # # #???????????? | | #???????# "Y" # | / """"" #???????????? | | #???????# # # """"" #???????????? | | #???????# # # """"" !#???????????? | | #+############ # ]| # #???????????? | | [ + ]| # " = #???????????? | | *%% # ]| # T #???????????? | | %%%% # # " #???????????? | | ###############"T%# # """ # ????????????? | | ??????????????#"""# # """ ##########???????????? | +----------------------------------------------------+ Best States ------------- Heat Dissipation 25 Energy Generation 10 Energy Capacity 125 Matter Stores 300 Matter Capacity 300 Sight Range 16 Terrain Scan Density 10 Evasion (%) 55 Item Schematics ----------------- None Robot Schematics ------------------ None Fabricated ------------ Nothing Alien Tech Used ----------------- None Achievements -------------- None Challenges ------------ None Game ------ Seed BladeSingularityPick Manual? 0 Play Time 00:04:56 Cumulative 112.7 hours Start 2022.03.29 @ 01:26:54 End 2022.03.29 @ 01:31:59 Sessions 1 Manual Loads 0 Difficulty Rogue Special Mode None Game No. 83 Rogue 66 Adventurer 6 Explorer 11 Win Type - Total 8 Types 5/0/1/1/0/0/1/0/0 Lore% 71 Gallery% 74 Achievement% 59 Wizard Run 0 Options --------- ASCII 0 Keyboard 0 Movement Numpad Keybinds 0 Fullscreen 1 Font 12/Fuzzy Map View 83x54 Tactical HUD 1 Map Filters NONE Filters NONE Steam 1 RUN: af93f2a5-f591-4242-a46c-db2128349cb2